[Event "Live Chess"]
[Site "Chess.com"]
[Date "2023.09.16"]
[Round "-"]
[White "VitorEMS"]
[Black "isanamie12"]
[Result "0-1"]
[WhiteElo "737"]
[BlackElo "807"]
[TimeControl "900+5"]
[EndTime "6:27:52 PDT"]
[Termination "isanamie12 venceu por desistência"]

1. e4 {[%clk 0:14:58]} 1... e5 {[%clk 0:15:02]} 2. Nf3 {[%clk 0:14:58.4]} 2...
Nc6 {[%clk 0:15:04.7]} 3. Bc4 {[%clk 0:15:00.5]} 3... Bc5 {[%clk 0:15:05.7]} 4.
O-O {[%clk 0:14:59.8]} 4... Nf6 {[%clk 0:15:07.8]} 5. Nc3 {[%clk 0:15:02.6]}
5... d6 {[%clk 0:14:59.6]} 6. d3 {[%clk 0:15:05.2]} 6... O-O {[%clk 0:14:53.5]}
7. Qe1 {[%clk 0:15:06.1]} 7... Re8 {[%clk 0:14:53.2]} 8. Be3 {[%clk 0:15:08.7]}
8... Bb4 {[%clk 0:14:50.5]} 9. a3 {[%clk 0:15:02.9]} 9... Bxc3 {[%clk
0:14:49.2]} 10. Qxc3 {[%clk 0:15:04.2]} 10... Bg4 {[%clk 0:14:10]} 11. Nd2
{[%clk 0:13:57.4]} 11... d5 {[%clk 0:13:55.4]} 12. exd5 {[%clk 0:13:47.8]} 12...
Nxd5 {[%clk 0:13:57]} 13. Bxd5 {[%clk 0:13:25.4]} 13... Qxd5 {[%clk 0:13:59.5]}
14. Ne4 {[%clk 0:13:19.5]} 14... Re6 {[%clk 0:13:35.3]} 15. Qd2 {[%clk
0:12:39.2]} 15... Rg6 {[%clk 0:13:03.4]} 16. c3 {[%clk 0:12:20.4]} 16... Bf3
{[%clk 0:12:30.3]} 17. g3 {[%clk 0:12:13]} 17... Bxe4 {[%clk 0:12:25.1]} 18.
dxe4 {[%clk 0:12:08.4]} 18... Qxe4 {[%clk 0:11:56.6]} 19. Rfd1 {[%clk
0:11:47.7]} 19... h6 {[%clk 0:11:52.2]} 20. Qe2 {[%clk 0:11:24.6]} 20... Qg4
{[%clk 0:11:29.2]} 21. Qc2 {[%clk 0:11:18.3]} 21... Rd8 {[%clk 0:11:04.2]} 22.
Re1 {[%clk 0:11:03.8]} 22... Rgd6 {[%clk 0:10:10.7]} 23. b4 {[%clk 0:10:29]}
23... a6 {[%clk 0:09:48.1]} 24. a4 {[%clk 0:10:15.9]} 24... Qg6 {[%clk
0:09:23.5]} 25. Qb3 {[%clk 0:10:08.1]} 25... Qe6 {[%clk 0:09:08.9]} 26. Qc2
{[%clk 0:10:06.1]} 26... Ne7 {[%clk 0:08:50.9]} 27. b5 {[%clk 0:10:06.5]} 27...
Nf5 {[%clk 0:08:45.1]} 28. Bc5 {[%clk 0:09:49.5]} 28... Rd2 {[%clk 0:08:39.2]}
29. Qc1 {[%clk 0:09:40]} 29... R8d5 {[%clk 0:08:11.4]} 30. Be3 {[%clk
0:09:21.5]} 30... Nxe3 {[%clk 0:08:10.3]} 31. fxe3 {[%clk 0:09:19.5]} 31... Qh3
{[%clk 0:08:07.3]} 0-1

[Event "Live Chess"]
[Site "Chess.com"]
[Date "2023.09.16"]
[Round "-"]
[White "Corveloni_Ma"]
[Black "RyanDiniz2011"]
[Result "0-1"]
[WhiteElo "1382"]
[BlackElo "1483"]
[TimeControl "900+5"]
[EndTime "6:29:24 PDT"]
[Termination "RyanDiniz2011 venceu por desistência"]

1. d4 {[%clk 0:15:00.5]} 1... Nf6 {[%clk 0:14:57.5]} 2. Nf3 {[%clk 0:14:59.9]}
2... g6 {[%clk 0:14:59]} 3. g3 {[%clk 0:14:57.8]} 3... Bg7 {[%clk 0:15:01.8]} 4.
Bg2 {[%clk 0:15:01.8]} 4... d5 {[%clk 0:15:03.8]} 5. O-O {[%clk 0:15:02.6]} 5...
O-O {[%clk 0:14:57.2]} 6. c4 {[%clk 0:15:03.5]} 6... dxc4 {[%clk 0:14:59.5]} 7.
Nbd2 {[%clk 0:15:07.5]} 7... c3 {[%clk 0:14:58.4]} 8. bxc3 {[%clk 0:15:10.5]}
8... Nbd7 {[%clk 0:14:59.4]} 9. Bb2 {[%clk 0:15:13.6]} 9... Nb6 {[%clk 0:15:02]}
10. Qc2 {[%clk 0:15:08.1]} 10... Bf5 {[%clk 0:15:02.7]} 11. Qd1 {[%clk
0:14:57.6]} 11... Ne4 {[%clk 0:14:35.9]} 12. Nxe4 {[%clk 0:14:42.3]} 12... Bxe4
{[%clk 0:14:33.7]} 13. Ne5 {[%clk 0:14:23.5]} 13... Bxg2 {[%clk 0:14:32.5]} 14.
Kxg2 {[%clk 0:14:27.1]} 14... Bxe5 {[%clk 0:14:31.6]} 15. dxe5 {[%clk 0:14:29]}
15... Nc4 {[%clk 0:14:34.1]} 16. Qb3 {[%clk 0:14:07.4]} 16... Nd2 {[%clk
0:14:31.3]} 17. Qc2 {[%clk 0:12:52.2]} 17... Nxf1 {[%clk 0:14:32.6]} 18. Rd1
{[%clk 0:12:48.8]} 18... Ne3+ {[%clk 0:14:12]} 19. fxe3 {[%clk 0:12:49.8]} 19...
Qc8 {[%clk 0:14:14.2]} 20. c4 {[%clk 0:12:31.8]} 20... Rd8 {[%clk 0:14:13.2]}
21. Rf1 {[%clk 0:12:20]} 21... Qe6 {[%clk 0:14:10.2]} 22. e4 {[%clk 0:11:15.2]}
22... Rd7 {[%clk 0:13:27]} 23. Qb3 {[%clk 0:10:50.3]} 23... Qc6 {[%clk
0:13:07.1]} 24. Qf3 {[%clk 0:10:19.3]} 24... Qxc4 {[%clk 0:12:53.8]} 25. a3
{[%clk 0:09:24.5]} 25... Rd2 {[%clk 0:12:52.7]} 26. Ba1 {[%clk 0:07:44.1]} 26...
Rxe2+ {[%clk 0:12:45.4]} 27. Kg1 {[%clk 0:07:48.2]} 27... Rxe4 {[%clk
0:12:09.5]} 28. h4 {[%clk 0:06:49.1]} 28... Rd8 {[%clk 0:10:27.9]} 29. e6 {[%clk
0:06:31]} 29... Qxe6 {[%clk 0:10:13.6]} 30. Qc3 {[%clk 0:06:15.8]} 30... Qb6+
{[%clk 0:09:58.6]} 31. Kh1 {[%clk 0:06:04.6]} 31... f6 {[%clk 0:09:18.2]} 32.
Qc2 {[%clk 0:04:45.5]} 32... Qc6 {[%clk 0:08:49.6]} 33. Qb3+ {[%clk 0:04:26.8]}
33... Qc4 {[%clk 0:08:44.7]} 34. Qxc4+ {[%clk 0:04:00.2]} 34... Rxc4 {[%clk
0:08:46]} 35. Re1 {[%clk 0:03:52.4]} 35... Kf7 {[%clk 0:08:44.6]} 36. Kh2 {[%clk
0:03:38]} 36... Rc2+ {[%clk 0:08:42.1]} 37. Kh3 {[%clk 0:03:41.2]} 37... Rdd2
{[%clk 0:08:30.4]} 38. Rh1 {[%clk 0:03:33.2]} 38... h5 {[%clk 0:08:31.5]} 39. a4
{[%clk 0:02:54.3]} 39... Rd3 {[%clk 0:08:11.8]} 40. Rh2 {[%clk 0:02:48.1]} 40...
Rxh2+ {[%clk 0:08:12.7]} 41. Kxh2 {[%clk 0:02:51.5]} 41... c5 {[%clk 0:08:15.8]}
42. a5 {[%clk 0:02:46.3]} 42... c4 {[%clk 0:08:18.8]} 0-1

[Event "Live Chess"]
[Site "Chess.com"]
[Date "2023.09.16"]
[Round "-"]
[White "CauaLopes12"]
[Black "DaviFuzatto"]
[Result "0-1"]
[WhiteElo "1322"]
[BlackElo "1371"]
[TimeControl "900+5"]
[EndTime "6:29:41 PDT"]
[Termination "DaviFuzatto venceu por xeque-mate"]

1. e4 {[%clk 0:15:03]} 1... e6 {[%clk 0:15:03.6]} 2. d4 {[%clk 0:15:05.3]} 2...
d5 {[%clk 0:15:07.8]} 3. Nc3 {[%clk 0:15:08.6]} 3... Nf6 {[%clk 0:15:08.5]} 4.
Bd3 {[%clk 0:15:07.1]} 4... c5 {[%clk 0:15:09.2]} 5. exd5 {[%clk 0:15:03.6]}
5... exd5 {[%clk 0:15:12.1]} 6. dxc5 {[%clk 0:15:06.8]} 6... Bxc5 {[%clk
0:15:13.4]} 7. Nf3 {[%clk 0:15:10.6]} 7... O-O {[%clk 0:15:13.3]} 8. O-O {[%clk
0:15:14.8]} 8... Nc6 {[%clk 0:15:09.4]} 9. Bg5 {[%clk 0:15:10.5]} 9... Be6
{[%clk 0:15:06.8]} 10. Re1 {[%clk 0:15:08.7]} 10... Be7 {[%clk 0:15:05.4]} 11.
h3 {[%clk 0:14:54.3]} 11... h6 {[%clk 0:15:08.3]} 12. Bh4 {[%clk 0:14:55.7]}
12... Rc8 {[%clk 0:15:00.7]} 13. Qd2 {[%clk 0:14:46.2]} 13... Nd7 {[%clk
0:14:22.8]} 14. Bxe7 {[%clk 0:14:35]} 14... Nxe7 {[%clk 0:14:27.7]} 15. Bb5
{[%clk 0:14:33.7]} 15... Nf6 {[%clk 0:14:29.1]} 16. Rad1 {[%clk 0:12:46.8]}
16... Nf5 {[%clk 0:12:53.3]} 17. Bd3 {[%clk 0:12:38.2]} 17... Qd6 {[%clk
0:12:23.6]} 18. Ne5 {[%clk 0:12:24.1]} 18... d4 {[%clk 0:12:03.6]} 19. Nb5
{[%clk 0:11:57.4]} 19... Qb6 {[%clk 0:11:15.1]} 20. Bxf5 {[%clk 0:11:13.2]}
20... Bxf5 {[%clk 0:11:17.7]} 21. Nxd4 {[%clk 0:11:16]} 21... Rcd8 {[%clk
0:10:37.1]} 22. c3 {[%clk 0:10:54.2]} 22... Bh7 {[%clk 0:10:04.8]} 23. Qe2
{[%clk 0:10:34.1]} 23... Rfe8 {[%clk 0:09:54.4]} 24. Qd2 {[%clk 0:10:01.1]}
24... Ne4 {[%clk 0:09:37.9]} 25. Qf4 {[%clk 0:09:44.4]} 25... f6 {[%clk
0:09:12.8]} 26. Nd3 {[%clk 0:08:31.8]} 26... Ng5 {[%clk 0:08:22]} 27. Qd2 {[%clk
0:08:12.7]} 27... Ne4 {[%clk 0:07:27]} 28. Qc2 {[%clk 0:07:29.7]} 28... Nc5
{[%clk 0:07:22.9]} 29. Rxe8+ {[%clk 0:06:05.1]} 29... Rxe8 {[%clk 0:07:22.9]}
30. Nb3 {[%clk 0:05:44.3]} 30... Nxd3 {[%clk 0:07:05.7]} 31. Qd2 {[%clk
0:05:45]} 31... Ne5 {[%clk 0:06:32.2]} 32. Nd4 {[%clk 0:05:16.4]} 32... Nc4
{[%clk 0:05:29.4]} 33. Qe2 {[%clk 0:05:07.2]} 33... Rxe2 {[%clk 0:05:29.6]} 34.
Ne6 {[%clk 0:04:12.7]} 34... Qxe6 {[%clk 0:05:27.8]} 35. Re1 {[%clk 0:04:16.4]}
35... Rxe1+ {[%clk 0:05:29.8]} 36. Kh2 {[%clk 0:04:18.9]} 36... Qe5+ {[%clk
0:05:34.4]} 37. g3 {[%clk 0:04:23]} 37... Qe2 {[%clk 0:05:39.3]} 38. b3 {[%clk
0:04:23.2]} 38... Qxf2# {[%clk 0:05:42.5]} 0-1

[Event "Live Chess"]
[Site "Chess.com"]
[Date "2023.09.16"]
[Round "-"]
[White "guilhermemazza"]
[Black "lanofimdojogo"]
[Result "1/2-1/2"]
[WhiteElo "452"]
[BlackElo "404"]
[TimeControl "900+5"]
[EndTime "6:29:57 PDT"]
[Termination "Partida empatada pela regra dos 50 lances"]

1. e4 {[%clk 0:15:03.5]} 1... e5 {[%clk 0:15:03.3]} 2. c3 {[%clk 0:15:06.6]}
2... a5 {[%clk 0:15:05.4]} 3. d4 {[%clk 0:15:10.5]} 3... Ra6 {[%clk 0:15:04.9]}
4. dxe5 {[%clk 0:15:13.9]} 4... Re6 {[%clk 0:14:59.4]} 5. Nf3 {[%clk 0:15:10.1]}
5... Nc6 {[%clk 0:14:49.3]} 6. Bf4 {[%clk 0:15:07]} 6... b5 {[%clk 0:14:46.1]}
7. b4 {[%clk 0:15:09.4]} 7... axb4 {[%clk 0:14:47.6]} 8. cxb4 {[%clk 0:15:13.4]}
8... Nxb4 {[%clk 0:14:44.2]} 9. Bxb5 {[%clk 0:15:11.3]} 9... Rb6 {[%clk
0:14:44.7]} 10. e6 {[%clk 0:15:08]} 10... Rxb5 {[%clk 0:14:45.7]} 11. exd7+
{[%clk 0:15:08.3]} 11... Qxd7 {[%clk 0:14:37]} 12. Qxd7+ {[%clk 0:15:10.9]}
12... Kxd7 {[%clk 0:14:38]} 13. a3 {[%clk 0:15:11.9]} 13... Nc2+ {[%clk
0:14:35.5]} 14. Kf1 {[%clk 0:15:09.1]} 14... Nxa1 {[%clk 0:14:29.7]} 15. Ke2
{[%clk 0:15:12.7]} 15... Rxb1 {[%clk 0:14:32.8]} 16. Rxb1 {[%clk 0:15:15.4]}
16... Nc2 {[%clk 0:14:31.7]} 17. Rd1+ {[%clk 0:15:18.1]} 17... Ke8 {[%clk
0:14:23.8]} 18. Bxc7 {[%clk 0:15:18]} 18... Nxa3 {[%clk 0:14:17.5]} 19. Rd8+
{[%clk 0:15:19.9]} 19... Ke7 {[%clk 0:14:17.1]} 20. Ng5 {[%clk 0:15:21.9]} 20...
Bd7 {[%clk 0:14:17.5]} 21. f4 {[%clk 0:15:24.3]} 21... Bb5+ {[%clk 0:14:15.1]}
22. Ke3 {[%clk 0:15:25]} 22... Nc2+ {[%clk 0:14:08.7]} 23. Kd2 {[%clk
0:15:27.7]} 23... Na1 {[%clk 0:14:08.4]} 24. g4 {[%clk 0:15:28]} 24... h6 {[%clk
0:13:57.3]} 25. Bd6+ {[%clk 0:15:25.5]} 25... Kxd8 {[%clk 0:13:58.3]} 26. Bxf8
{[%clk 0:15:28.8]} 26... hxg5 {[%clk 0:13:59.1]} 27. fxg5 {[%clk 0:15:32.3]}
27... Nb3+ {[%clk 0:13:59.2]} 28. Kc3 {[%clk 0:15:35.3]} 28... Na1 {[%clk
0:14:00.2]} 29. Kb4 {[%clk 0:15:39.1]} 29... Be2 {[%clk 0:14:00.5]} 30. Bxg7
{[%clk 0:15:41.8]} 30... Rh7 {[%clk 0:14:00.8]} 31. Bxa1 {[%clk 0:15:43.8]}
31... Rxh2 {[%clk 0:14:01.2]} 32. g6 {[%clk 0:15:43.9]} 32... fxg6 {[%clk
0:14:03.4]} 33. e5 {[%clk 0:15:47.9]} 33... Rh1 {[%clk 0:13:58.4]} 34. Bd4
{[%clk 0:15:51.4]} 34... Rd1 {[%clk 0:13:58.2]} 35. Bc5 {[%clk 0:15:54.5]} 35...
Rc1 {[%clk 0:13:59.9]} 36. Bd6 {[%clk 0:15:55.3]} 36... Ne7 {[%clk 0:13:59.3]}
37. e6 {[%clk 0:15:59]} 37... g5 {[%clk 0:13:49.3]} 38. Kb3 {[%clk 0:15:51.8]}
38... Rb1+ {[%clk 0:13:52.1]} 39. Kc2 {[%clk 0:15:55]} 39... Re1 {[%clk
0:13:51.4]} 40. Kd2 {[%clk 0:15:58]} 40... Rb1 {[%clk 0:13:47.4]} 41. Kxe2
{[%clk 0:16:01.6]} 41... Rb2+ {[%clk 0:13:51.4]} 42. Kd3 {[%clk 0:16:05.3]}
42... Rb3+ {[%clk 0:13:55.2]} 43. Ke4 {[%clk 0:16:09.2]} 43... Rb4+ {[%clk
0:13:59.3]} 44. Kd3 {[%clk 0:16:11.8]} 44... Rxg4 {[%clk 0:13:58.7]} 45. Ke3
{[%clk 0:16:13]} 45... Rg3+ {[%clk 0:14:01.4]} 46. Bxg3 {[%clk 0:16:15]} 46...
Nf5+ {[%clk 0:13:56]} 47. Ke4 {[%clk 0:16:18.4]} 47... Nxg3+ {[%clk 0:13:53.9]}
48. Ke5 {[%clk 0:16:21.7]} 48... g4 {[%clk 0:13:56.1]} 49. Kd6 {[%clk
0:16:25.6]} 49... Ne4+ {[%clk 0:13:56.7]} 50. Ke5 {[%clk 0:16:28.5]} 50... Nc3
{[%clk 0:13:56.9]} 51. Kf6 {[%clk 0:16:28]} 51... g3 {[%clk 0:14:00.6]} 52. e7+
{[%clk 0:16:31.9]} 52... Kc8 {[%clk 0:14:00]} 53. e8=Q+ {[%clk 0:16:35.1]} 53...
Kc7 {[%clk 0:14:03.3]} 54. Qe3 {[%clk 0:16:36.8]} 54... Nd5+ {[%clk 0:14:00.1]}
55. Kf5 {[%clk 0:16:29.9]} 55... Nxe3+ {[%clk 0:14:01.7]} 56. Kf4 {[%clk
0:16:33.7]} 56... g2 {[%clk 0:14:03.7]} 57. Kxe3 {[%clk 0:16:37.7]} 57... g1=Q+
{[%clk 0:14:07]} 58. Ke2 {[%clk 0:16:40.6]} 58... Qg2+ {[%clk 0:14:10.4]} 59.
Ke1 {[%clk 0:16:44]} 59... Kc6 {[%clk 0:14:13.9]} 60. Kd1 {[%clk 0:16:47.8]}
60... Kc5 {[%clk 0:14:17.6]} 61. Ke1 {[%clk 0:16:51.7]} 61... Kc4 {[%clk
0:14:21.1]} 62. Kd1 {[%clk 0:16:55.3]} 62... Qf3+ {[%clk 0:14:22.4]} 63. Kd2
{[%clk 0:16:58.6]} 63... Qf4+ {[%clk 0:14:21.1]} 64. Ke2 {[%clk 0:17:02]} 64...
Kc3 {[%clk 0:14:24.3]} 65. Ke1 {[%clk 0:17:05.7]} 65... Kd3 {[%clk 0:14:27.4]}
66. Kd1 {[%clk 0:17:09.5]} 66... Qg4+ {[%clk 0:14:29.4]} 67. Ke1 {[%clk
0:17:11.8]} 67... Ke3 {[%clk 0:14:30.1]} 68. Kf1 {[%clk 0:17:15]} 68... Kf3
{[%clk 0:14:33.1]} 69. Ke1 {[%clk 0:17:18.7]} 69... Qe4+ {[%clk 0:14:35.8]} 70.
Kd2 {[%clk 0:17:21.7]} 70... Qd4+ {[%clk 0:14:39.2]} 71. Kc2 {[%clk 0:17:25.4]}
71... Qe4+ {[%clk 0:14:39.3]} 72. Kc3 {[%clk 0:17:28.9]} 72... Qe3+ {[%clk
0:14:42]} 73. Kc4 {[%clk 0:17:32.6]} 73... Kf4 {[%clk 0:14:45.6]} 74. Kb4 {[%clk
0:17:35.9]} 74... Qe4+ {[%clk 0:14:48.3]} 75. Kc3 {[%clk 0:17:39.2]} 75... Qe3+
{[%clk 0:14:51.7]} 76. Kc4 {[%clk 0:17:41.6]} 76... Kf5 {[%clk 0:14:54.8]} 77.
Kb4 {[%clk 0:17:44.3]} 77... Ke5 {[%clk 0:14:58.6]} 78. Kc4 {[%clk 0:17:48.1]}
78... Qe2+ {[%clk 0:15:00.7]} 79. Kc3 {[%clk 0:17:51.9]} 79... Qe1+ {[%clk
0:15:01.5]} 80. Kd3 {[%clk 0:17:55.6]} 80... Kd5 {[%clk 0:15:01.9]} 81. Kc2
{[%clk 0:17:59.3]} 81... Qe2+ {[%clk 0:15:04.7]} 82. Kc3 {[%clk 0:18:02.1]}
82... Qe3+ {[%clk 0:15:07.9]} 83. Kb4 {[%clk 0:18:05.2]} 83... Qe4+ {[%clk
0:15:10.7]} 84. Kc3 {[%clk 0:18:08.9]} 84... Qe3+ {[%clk 0:15:14.4]} 85. Kc2
{[%clk 0:18:12.8]} 85... Qe2+ {[%clk 0:15:17.9]} 86. Kc1 {[%clk 0:18:15.9]}
86... Qe1+ {[%clk 0:15:20.4]} 87. Kc2 {[%clk 0:18:19.8]} 87... Ke4 {[%clk
0:15:23.6]} 88. Kb2 {[%clk 0:18:23.5]} 88... Kd3 {[%clk 0:15:25.5]} 89. Kb3
{[%clk 0:18:27.2]} 89... Qb1+ {[%clk 0:15:27.9]} 90. Ka3 {[%clk 0:18:30.9]}
90... Kc3 {[%clk 0:15:28.1]} 91. Ka4 {[%clk 0:18:35]} 91... Qa1+ {[%clk
0:15:31]} 92. Kb5 {[%clk 0:18:39]} 92... Qb1+ {[%clk 0:15:33.1]} 93. Kc5 {[%clk
0:18:42.7]} 93... Kd3 {[%clk 0:15:33.6]} 94. Kd5 {[%clk 0:18:46.5]} 94... Qa2+
{[%clk 0:15:35.2]} 95. Ke5 {[%clk 0:18:48.7]} 95... Qa5+ {[%clk 0:15:35.2]} 96.
Kf4 {[%clk 0:18:51.8]} 96... Qd5 {[%clk 0:15:33.6]} 97. Kg4 {[%clk 0:18:55.5]}
97... Qe4+ {[%clk 0:15:36.9]} 98. Kh5 {[%clk 0:18:58.6]} 98... Qf5+ {[%clk
0:15:39.9]} 99. Kh4 {[%clk 0:19:02.2]} 99... Qf4+ {[%clk 0:15:40.5]} 100. Kh5
{[%clk 0:19:05.8]} 100... Ke3 {[%clk 0:15:42.1]} 101. Kg6 {[%clk 0:19:09.4]}
101... Kf3 {[%clk 0:15:45]} 102. Kh5 {[%clk 0:19:11.8]} 102... Kg3 {[%clk
0:15:45.3]} 103. Kg6 {[%clk 0:19:15.6]} 103... Qe4+ {[%clk 0:15:46.5]} 104. Kh6
{[%clk 0:19:18.5]} 104... Kg4 {[%clk 0:15:47.9]} 105. Kg7 {[%clk 0:19:22]}
105... Qe5+ {[%clk 0:15:49.6]} 106. Kh6 {[%clk 0:19:24.5]} 106... Kf5 {[%clk
0:15:48.3]} 107. Kh7 {[%clk 0:19:27.8]} 107... Qe7+ {[%clk 0:15:52.2]} 1/2-1/2

[Event "Live Chess"]
[Site "Chess.com"]
[Date "2023.09.16"]
[Round "-"]
[White "Sabadin21"]
[Black "Mariafernanda2805"]
[Result "1-0"]
[WhiteElo "904"]
[BlackElo "991"]
[TimeControl "900+5"]
[EndTime "6:30:22 PDT"]
[Termination "Sabadin21 venceu por xeque-mate"]

1. e4 {[%clk 0:15:02.1]} 1... c5 {[%clk 0:15:02.5]} 2. Nf3 {[%clk 0:15:04.1]}
2... d6 {[%clk 0:15:04.5]} 3. Nc3 {[%clk 0:15:05.7]} 3... Nf6 {[%clk 0:15:06.3]}
4. d4 {[%clk 0:15:08.6]} 4... cxd4 {[%clk 0:15:08.4]} 5. Nxd4 {[%clk 0:15:13.1]}
5... a6 {[%clk 0:15:08.5]} 6. Bd3 {[%clk 0:15:09.4]} 6... g6 {[%clk 0:15:10.4]}
7. O-O {[%clk 0:15:11.3]} 7... Bg7 {[%clk 0:15:13.6]} 8. Be3 {[%clk 0:15:13.5]}
8... O-O {[%clk 0:15:14.7]} 9. Qd2 {[%clk 0:15:08.2]} 9... Nc6 {[%clk
0:15:13.9]} 10. Rad1 {[%clk 0:15:09.7]} 10... Be6 {[%clk 0:15:03.1]} 11. Rfe1
{[%clk 0:15:11.3]} 11... Nxd4 {[%clk 0:15:02.4]} 12. Bxd4 {[%clk 0:15:12.4]}
12... Qc7 {[%clk 0:14:43.6]} 13. Bxf6 {[%clk 0:15:14.1]} 13... Bxf6 {[%clk
0:14:45.9]} 14. Re3 {[%clk 0:14:34]} 14... Bg5 {[%clk 0:14:44.7]} 15. Rde1
{[%clk 0:14:32.8]} 15... Bxe3 {[%clk 0:14:47.2]} 16. Rxe3 {[%clk 0:14:37.3]}
16... Qb6 {[%clk 0:14:37.3]} 17. b3 {[%clk 0:14:37.7]} 17... Rac8 {[%clk
0:14:33.3]} 18. Nd5 {[%clk 0:14:38.3]} 18... Bxd5 {[%clk 0:14:34.3]} 19. exd5
{[%clk 0:14:42.7]} 19... Qd4 {[%clk 0:14:31.5]} 20. Rh3 {[%clk 0:14:46.6]} 20...
Qc3 {[%clk 0:13:54.5]} 21. Qh6 {[%clk 0:14:45.8]} 21... Qe1+ {[%clk 0:13:48.6]}
22. Bf1 {[%clk 0:14:44.3]} 22... Rfd8 {[%clk 0:12:58.7]} 23. Qxh7+ {[%clk
0:14:45.8]} 23... Kf8 {[%clk 0:13:02.3]} 24. Qh8# {[%clk 0:14:49.5]} 1-0

[Event "Live Chess"]
[Site "Chess.com"]
[Date "2023.09.16"]
[Round "-"]
[White "PedroRossi14"]
[Black "asafefausto"]
[Result "1-0"]
[WhiteElo "525"]
[BlackElo "587"]
[TimeControl "900+5"]
[EndTime "6:34:24 PDT"]
[Termination "PedroRossi14 venceu por xeque-mate"]

1. e4 {[%clk 0:15:03.3]} 1... c5 {[%clk 0:14:58]} 2. Nf3 {[%clk 0:15:05.4]} 2...
Nc6 {[%clk 0:14:57.4]} 3. d4 {[%clk 0:15:08.8]} 3... e5 {[%clk 0:14:59.9]} 4.
dxe5 {[%clk 0:15:10.5]} 4... Nxe5 {[%clk 0:14:51.1]} 5. Nxe5 {[%clk 0:15:13.8]}
5... d6 {[%clk 0:14:50.3]} 6. Nf3 {[%clk 0:15:09]} 6... Nf6 {[%clk 0:14:52.2]}
7. Nc3 {[%clk 0:15:11.8]} 7... Bg4 {[%clk 0:14:44.7]} 8. Be2 {[%clk 0:15:09.1]}
8... Be7 {[%clk 0:14:43.1]} 9. O-O {[%clk 0:15:11.5]} 9... O-O {[%clk
0:14:45.8]} 10. Bf4 {[%clk 0:15:01]} 10... Re8 {[%clk 0:14:04.3]} 11. Nd5 {[%clk
0:15:03.6]} 11... Nxd5 {[%clk 0:13:59.1]} 12. exd5 {[%clk 0:15:06.3]} 12... Bh4
{[%clk 0:13:23.3]} 13. Re1 {[%clk 0:14:59.3]} 13... Qb6 {[%clk 0:13:06.4]} 14.
b3 {[%clk 0:14:54.3]} 14... c4 {[%clk 0:13:03.4]} 15. bxc4 {[%clk 0:14:40.8]}
15... Qxf2+ {[%clk 0:13:05]} 16. Kh1 {[%clk 0:14:37.7]} 16... Rad8 {[%clk
0:12:30.1]} 17. Nxh4 {[%clk 0:14:39.9]} 17... Bxe2 {[%clk 0:12:23.7]} 18. Rxe2
{[%clk 0:14:09.7]} 18... Rxe2 {[%clk 0:12:24.6]} 19. Qf1 {[%clk 0:14:08.3]}
19... Rde8 {[%clk 0:12:17.8]} 20. Bg3 {[%clk 0:13:46.1]} 20... Qe3 {[%clk
0:12:03.6]} 21. Nf5 {[%clk 0:13:38.6]} 21... g6 {[%clk 0:11:20.2]} 22. Nxe3
{[%clk 0:13:38.7]} 22... R8xe3 {[%clk 0:11:16.4]} 23. Re1 {[%clk 0:13:38.9]}
23... Rxc2 {[%clk 0:10:50.5]} 24. Rxe3 {[%clk 0:13:41.2]} 24... Rxa2 {[%clk
0:10:46.2]} 25. Re8+ {[%clk 0:13:43]} 25... Kg7 {[%clk 0:10:46.1]} 26. Bxd6
{[%clk 0:13:40.7]} 26... a5 {[%clk 0:10:37.1]} 27. Bf8+ {[%clk 0:13:42.5]} 27...
Kg8 {[%clk 0:10:31.5]} 28. Bh6# {[%clk 0:13:46]} 1-0

[Event "Live Chess"]
[Site "Chess.com"]
[Date "2023.09.16"]
[Round "-"]
[White "DaviFuzatto"]
[Black "guilhermemazza"]
[Result "1-0"]
[WhiteElo "1371"]
[BlackElo "451"]
[TimeControl "900+5"]
[EndTime "6:34:37 PDT"]
[Termination "DaviFuzatto venceu por xeque-mate"]

1. e4 {[%clk 0:15:02.3]} 1... c5 {[%clk 0:15:03.2]} 2. Nf3 {[%clk 0:15:05.7]}
2... d5 {[%clk 0:15:04.6]} 3. exd5 {[%clk 0:14:56.7]} 3... Qxd5 {[%clk
0:15:07.4]} 4. Nc3 {[%clk 0:15:01.4]} 4... Qd6 {[%clk 0:14:59.5]} 5. Bb5+ {[%clk
0:15:00.9]} 5... Bd7 {[%clk 0:15:01.4]} 6. Bxd7+ {[%clk 0:15:04.7]} 6... Qxd7
{[%clk 0:15:03.5]} 7. O-O {[%clk 0:15:07]} 7... Nc6 {[%clk 0:15:06.3]} 8. d3
{[%clk 0:15:04.6]} 8... O-O-O {[%clk 0:15:07.2]} 9. Be3 {[%clk 0:14:30.5]} 9...
f5 {[%clk 0:15:09.4]} 10. Bxc5 {[%clk 0:14:30.2]} 10... e5 {[%clk 0:15:00.7]}
11. Bxf8 {[%clk 0:14:25.1]} 11... Rxf8 {[%clk 0:15:03.2]} 12. Re1 {[%clk
0:14:29]} 12... Nd4 {[%clk 0:14:59]} 13. Rxe5 {[%clk 0:13:56.2]} 13... Nxf3+
{[%clk 0:15:01.3]} 14. Qxf3 {[%clk 0:14:01.1]} 14... Qd4 {[%clk 0:14:58.7]} 15.
Rxf5 {[%clk 0:13:48.1]} 15... Re8 {[%clk 0:14:56.1]} 16. Rf7 {[%clk 0:13:26.4]}
16... Qe5 {[%clk 0:14:54.6]} 17. Qxb7+ {[%clk 0:13:26.7]} 17... Kd8 {[%clk
0:14:56.9]} 18. Rd7# {[%clk 0:13:30.3]} 1-0

[Event "Live Chess"]
[Site "Chess.com"]
[Date "2023.09.16"]
[Round "-"]
[White "lanofimdojogo"]
[Black "CauaLopes12"]
[Result "0-1"]
[WhiteElo "402"]
[BlackElo "1322"]
[TimeControl "900+5"]
[EndTime "6:34:41 PDT"]
[Termination "CauaLopes12 venceu por xeque-mate"]

1. h4 {[%clk 0:15:01.4]} 1... e5 {[%clk 0:14:55.9]} 2. d4 {[%clk 0:15:02.3]}
2... exd4 {[%clk 0:14:58.6]} 3. Qxd4 {[%clk 0:15:03.3]} 3... Nf6 {[%clk
0:15:01.9]} 4. Rh3 {[%clk 0:15:02.9]} 4... d5 {[%clk 0:15:04.8]} 5. Qd3 {[%clk
0:15:01.9]} 5... Bxh3 {[%clk 0:15:03.2]} 6. gxh3 {[%clk 0:15:04.9]} 6... Bd6
{[%clk 0:15:04.3]} 7. Bg2 {[%clk 0:14:57.3]} 7... Be7 {[%clk 0:14:57.9]} 8. Nc3
{[%clk 0:14:52]} 8... O-O {[%clk 0:14:46.7]} 9. Nf3 {[%clk 0:14:53.6]} 9... c6
{[%clk 0:14:49.7]} 10. Ng5 {[%clk 0:14:50.2]} 10... h6 {[%clk 0:14:43.8]} 11.
Nf3 {[%clk 0:14:47]} 11... Nbd7 {[%clk 0:14:43.3]} 12. Na4 {[%clk 0:14:47.9]}
12... Re8 {[%clk 0:14:43.1]} 13. Nc3 {[%clk 0:14:47.9]} 13... Qb6 {[%clk
0:14:43.8]} 14. a4 {[%clk 0:14:50.8]} 14... Bc5 {[%clk 0:14:38.8]} 15. Kf1
{[%clk 0:14:38.2]} 15... Bxf2 {[%clk 0:14:37.4]} 16. Ra3 {[%clk 0:14:18.9]}
16... Nh5 {[%clk 0:14:06.6]} 17. Rb3 {[%clk 0:14:19.1]} 17... Ng3# {[%clk
0:14:09.3]} 0-1